bitfinex/quotes_SOLUSD_20250919
["timestamp","ask_amount","ask_price","bid_price","bid_amount"]
[1758243090380,0.06,247.92,247.91,6.33769895]
[1758243091578,0.06,247.92,247.91,62.66769895]
[1758243093077,0.06,247.92,247.91,62.72769895]
[1758243093865,0.06,247.92,247.91,31.64769895]
[1758243094068,0.06,247.92,247.91,62.72769895]
[1758243094783,0.77,247.92,247.91,1.61397704]
[1758243094971,0.77,247.92,247.89,31.08]
[1758243095173,0.71,247.91,247.89,57.08]
[1758243095369,0.71,247.9,247.89,26.0]
[1758243095564,0.71,247.9,247.88,31.08]
[1758243095764,0.71,247.9,247.87,4.03437285]
[1758243095765,0.71,247.9,247.89,26.0]
[1758243095979,0.71,247.9,247.88,31.08]
[1758243096288,0.71,247.9,247.89,4.03404735]
[1758243098767,0.71,247.9,247.89,30.03404735]
[1758243098963,0.71,247.9,247.88,35.09420791]
[1758243099160,0.06,247.92,247.91,26.0]
[1758243099672,0.77,247.92,247.91,26.0]
[1758243100716,0.77,247.92,247.9,26.0]
[1758243100873,0.71,247.91,247.9,26.0]
[1758243101482,0.71,247.91,247.89,4.03401179]
[1758243101685,0.71,247.9,247.89,4.03401179]
[1758243103080,0.71,247.9,247.88,4.0342101]
[1758243103376,0.71,247.89,247.88,30.0342101]
[1758243103882,0.71,247.89,247.88,26.0]
[1758243104585,0.71,247.89,247.84,4.0347616]
[1758243104777,4.09356569,247.92,247.84,4.0347616]
[1758243104778,0.71,247.88,247.84,4.0347616]
[1758243104980,0.71,247.87,247.84,4.0347616]
[1758243105170,4.09356569,247.92,247.86,26.0]
[1758243105669,4.74386672,247.91,247.86,26.0]
[1758243105875,0.71,247.9,247.86,26.0]
[1758243106076,0.71,247.89,247.86,26.0]
[1758243106369,0.71,247.88,247.83,4.06502351]
[1758243106777,0.71,247.87,247.84,26.0]
[1758243107083,0.71,247.86,247.84,26.0]
[1758243107382,0.71,247.85,247.84,26.0]
[1758243107562,0.71,247.85,247.84,30.0348612]
[1758243109180,0.71,247.87,247.84,30.0348612]
[1758243109992,0.71,247.87,247.84,30.0648612]
[1758243110190,0.77,247.86,247.84,30.0648612]
[1758243112797,0.06,247.86,247.84,30.0648612]
[1758243113185,0.06,247.86,247.85,26.0]
[1758243113394,0.06,247.86,247.85,57.73]
[1758243113805,0.06,247.86,247.85,69.83727041]
[1758243114396,0.06,247.92,247.86,0.28432314]
[1758243114592,0.06,247.92,247.87,1.09343728]
[1758243114897,0.06,247.92,247.91,26.0]
[1758243115080,0.06,247.92,247.91,31.72]
[1758243115276,0.06,247.92,247.91,35.75372191]
[1758243115599,0.06,247.93,247.91,37.7709409]
[1758243115796,0.06,247.93,247.92,0.66]
[1758243116881,0.06,247.93,247.92,26.0]
[1758243117088,0.06,247.93,247.92,57.06]
[1758243117286,0.06,247.93,247.92,61.09355921]
[1758243117490,0.06,247.93,247.92,30.03355921]
[1758243117802,0.77,247.93,247.92,30.03355921]
[1758243118506,0.06,247.93,247.92,30.03355921]
[1758243119386,0.06,247.93,247.92,61.75355921]
[1758243119587,0.06,247.93,247.92,62.70740602]
[1758243120378,0.06,247.93,247.92,63.36740602]
[1758243120580,0.06,247.93,247.92,62.70740602]
[1758243120994,0.06,247.93,247.92,63.36740602]
[1758243121590,0.06,247.93,247.92,62.70740602]
[1758243122413,0.77,247.93,247.91,31.06]
[1758243122704,0.71,247.92,247.91,57.06]
[1758243122880,0.71,247.92,247.91,31.06]
[1758243123510,0.71,247.92,247.91,61.09372191]
[1758243123809,0.06,247.93,247.91,61.09372191]
[1758243124393,0.06,247.93,247.91,35.75372191]
[1758243124600,0.06,247.93,247.92,0.66]
[1758243124909,0.06,247.95,247.94,26.0]
[1758243125110,0.06,247.95,247.94,57.1]
[1758243125401,0.06,247.95,247.94,57.76]
[1758243125608,0.06,247.95,247.94,63.40701553]
[1758243126599,0.06,247.97,247.95,0.28432314]
[1758243126787,0.06,247.97,247.96,32.16329085]
[1758243127287,0.06,247.97,247.96,33.11681216]
[1758243127715,0.06,247.97,247.96,37.80972069]
[1758243127925,0.06,247.97,247.96,36.74642984]
[1758243130689,0.06,247.97,247.96,5.64642984]
[1758243130889,0.06,247.97,247.96,36.74642984]
[1758243131514,0.77,247.97,247.96,36.74642984]
[1758243132428,0.77,247.97,247.91,0.03]
[1758243132597,0.77,247.97,247.92,4.03355921]
[1758243132792,0.71,247.96,247.92,4.03355921]
[1758243132991,0.71,247.95,247.92,4.03355921]
[1758243133226,0.71,247.94,247.93,26.0]
[1758243133813,0.77,247.97,247.95,26.0]
[1758243134025,0.71,247.96,247.95,26.0]
[1758243135516,0.71,247.96,247.95,30.03307118]
[1758243136908,0.71,247.96,247.95,26.0]
[1758243140202,0.71,247.96,247.91,0.03]
[1758243140409,0.71,247.95,247.91,0.03]
[1758243140821,0.71,247.95,247.91,26.03]
[1758243141012,0.71,247.94,247.91,26.03]
[1758243141218,0.71,247.93,247.91,26.03]
[1758243141533,16.56299451,247.92,247.91,0.03]
[1758243142508,14.30559401,247.92,247.91,0.03]
[1758243143326,0.71,247.92,247.91,0.03]
[1758243149304,18.33915322,247.92,247.91,0.03]
[1758243149510,20.59655372,247.92,247.91,0.03]
[1758243150322,0.34432314,247.96,247.91,0.03]
[1758243150323,0.06,247.96,247.91,0.03]
[1758243150537,0.66,247.94,247.91,0.03]
[1758243150838,0.66,247.93,247.91,0.03]
[1758243151224,0.66,247.92,247.91,0.03]
[1758243151935,0.72,247.96,247.91,0.03]
[1758243152238,0.06,247.96,247.91,0.69]
[1758243152435,0.06,247.96,247.92,0.66]
[1758243152814,0.06,247.96,247.93,0.66]
[1758243153015,0.06,247.96,247.91,0.03]
[1758243153329,0.06,247.96,247.94,0.66]
[1758243155140,0.06,247.96,247.95,30.03307118]
[1758243155754,4.75292345,247.96,247.91,0.03]
[1758243156122,13.59559401,247.95,247.91,0.03]
[1758243156330,0.06,247.96,247.91,0.03]
[1758243156534,0.06,247.96,247.92,0.66]
[1758243156843,0.06,247.96,247.91,4.06368087]
[1758243157045,0.72,247.96,247.91,0.03]
[1758243157752,0.72,247.96,247.91,0.69]
[1758243158149,0.66,247.95,247.91,0.03]
[1758243158624,0.66,247.94,247.91,0.03]
[1758243161046,0.06,247.96,247.91,0.03]
[1758243161238,0.66,247.93,247.91,0.03]
[1758243163438,0.66,247.92,247.91,0.03]
[1758243163751,14.25559401,247.92,247.91,0.03]
[1758243167567,18.28915322,247.92,247.91,0.03]
[1758243167945,20.54655372,247.92,247.91,0.03]
[1758243168852,18.28915322,247.92,247.91,0.03]
[1758243169968,20.54655372,247.92,247.91,0.03]
[1758243171864,18.28915322,247.92,247.91,0.03]
[1758243175880,20.54655372,247.92,247.91,0.03]
[1758243176274,20.83087686,247.92,247.91,0.03]
[1758243179166,20.54655372,247.92,247.91,0.03]
[1758243179683,20.83087686,247.92,247.91,0.03]
[1758243180675,13.59559401,247.88,247.86,0.03]
[1758243180879,47.19731765,247.87,247.86,0.03]
[1758243181077,47.90731765,247.87,247.86,0.03]
[1758243181858,51.9416905,247.87,247.86,0.03]
[1758243183971,49.68429,247.87,247.86,0.03]
[1758243184181,51.9416905,247.87,247.86,0.03]
[1758243185364,20.8816905,247.87,247.86,0.03]
[1758243185564,51.9416905,247.87,247.86,0.03]
[1758243189384,49.68429,247.87,247.86,0.03]
[1758243189584,51.9416905,247.87,247.86,0.03]
[1758243189764,51.9216905,247.87,247.86,0.03]
[1758243191712,54.179091,247.87,247.86,0.03]
[1758243193899,51.9216905,247.87,247.86,0.03]
[1758243195797,56.9003359,247.87,247.86,0.03]
[1758243196382,59.60302849,247.87,247.86,0.03]
[1758243196803,13.59559401,247.84,247.83,0.03]
[1758243197109,32.77153232,247.84,247.83,0.03]
[1758243197298,47.07712633,247.84,247.83,0.03]
[1758243197877,51.11198753,247.84,247.83,0.03]
[1758243199107,13.87991715,247.83,247.8,0.03]
[1758243199299,15.32712633,247.81,247.8,0.03]
[1758243199784,20.07247599,247.81,247.8,0.03]
[1758243199983,19.36247599,247.81,247.8,0.03]
[1758243200586,5.76688198,247.81,247.8,0.03]
[1758243200815,19.36247599,247.81,247.8,0.03]
[1758243201285,17.91526681,247.81,247.8,0.03]
[1758243201484,20.07247599,247.81,247.8,0.03]
[1758243202792,19.36247599,247.81,247.8,0.03]
[1758243202993,20.07247599,247.81,247.8,0.03]
[1758243206092,24.22042854,247.81,247.77,0.03]
[1758243206300,42.77433551,247.78,247.77,0.03]
[1758243206514,73.81433551,247.78,247.77,0.03]
[1758243206694,74.47433551,247.78,247.77,0.03]
[1758243207303,78.51017375,247.78,247.77,0.03]
[1758243207912,80.12617213,247.78,247.77,0.03]
[1758243208499,78.67896295,247.78,247.77,0.03]
[1758243209809,78.01896295,247.78,247.77,0.03]
[1758243210318,78.67896295,247.78,247.77,0.03]
[1758243211095,47.63896295,247.78,247.77,0.03]
[1758243211319,78.67896295,247.78,247.77,0.03]
[1758243211506,46.97896295,247.78,247.77,0.03]
[1758243211708,76.57175377,247.78,247.77,0.03]
[1758243213408,78.01896295,247.78,247.77,0.03]
[1758243213820,46.97896295,247.78,247.77,0.03]
[1758243214116,17.63143225,247.78,247.77,0.75]
[1758243214321,48.67143225,247.78,247.77,0.75]
[1758243216112,48.67143225,247.78,247.77,0.03]
[1758243217711,48.95575539,247.78,247.77,0.03]
[1758243218525,3.43969986,247.92,247.77,26.75]
[1758243218716,0.06,247.92,247.81,26.0]
[1758243218917,0.06,247.92,247.82,6.77165765]
[1758243219110,0.06,247.92,247.86,30.03453562]
[1758243219111,13.59559401,247.91,247.86,30.03453562]
[1758243219313,29.54,247.92,247.86,30.03453562]
[1758243219828,29.54,247.92,247.86,42.14376083]
[1758243226154,13.59559401,247.91,247.86,38.10922521]
[1758243226309,4.09392773,247.9,247.86,12.10922521]
[1758243226513,4.09392773,247.9,247.82,6.77165765]
[1758243226514,13.65559401,247.9,247.85,26.0]
[1758243226816,13.65559401,247.9,247.85,30.03464854]
[1758243227425,13.65559401,247.9,247.86,12.11020284]
[1758243227835,0.06,247.9,247.86,12.11020284]
[1758243229413,0.06,247.9,247.86,16.14473846]
[1758243229928,0.06,247.9,247.86,14.89473846]
[1758243235516,0.06,247.9,247.89,26.0]
[1758243235722,0.06,247.9,247.89,30.03404735]
[1758243236129,0.06,247.9,247.89,31.64828493]
[1758243237128,0.06,247.92,247.89,73.45680805]
[1758243237542,0.06,247.92,247.89,73.05340332]
[1758243240154,0.66,247.91,247.89,1.61423758]
[1758243240450,0.66,247.9,247.89,5.64828307]
[1758243243256,0.66,247.9,247.89,1.61423758]
[1758243247251,0.06,247.92,247.89,15.73338345]
[1758243247457,0.06,247.92,247.91,26.0]
[1758243248859,0.06,247.92,247.91,31.6478292]
[1758243251651,0.06,247.93,247.91,31.6478292]
[1758243251860,0.06,247.93,247.91,32.05120139]
[1758243252458,0.06,247.95,247.91,42.13550617]
[1758243252640,0.06,247.95,247.91,41.73213398]
[1758243253027,0.06,247.95,247.91,42.13550617]
[1758243253449,0.06,247.96,247.91,42.13550617]
[1758243254239,0.06,247.97,247.95,26.0]
[1758243255043,0.06,247.97,247.96,4.03290853]
[1758243256634,0.06,247.99,247.97,26.0]
[1758243257843,0.06,247.99,247.97,30.03274589]
[1758243258255,0.06,247.99,247.97,31.64633229]
[1758243260467,0.06,247.99,247.97,5.64633229]
[1758243267160,0.06,247.99,247.96,4.03290853]
[1758243267972,0.06,247.99,247.97,26.0]
[1758243268356,0.06,247.99,247.97,30.03274589]
[1758243268550,0.74,247.98,247.97,30.03274589]
[1758243268870,0.74,247.98,247.97,26.0]
[1758243269575,0.74,247.98,247.97,30.03274589]
[1758243272574,0.74,247.98,247.97,26.0]
[1758243272750,0.74,247.98,247.95,4.06291362]
[1758243272950,0.68,247.97,247.95,4.06291362]
[1758243273171,0.68,247.96,247.95,0.03]
[1758243277258,0.06,247.98,247.95,0.03]
[1758243277463,0.74,247.98,247.95,0.03]
[1758243277656,0.68,247.97,247.95,0.03]
[1758243278457,0.06,247.98,247.95,0.03]
[1758243279784,0.74,247.98,247.95,0.03]
[1758243280576,0.68,247.97,247.95,0.03]
[1758243281282,0.06,247.98,247.95,0.03]
[1758243281978,0.74,247.98,247.95,0.03]
[1758243283079,0.68,247.97,247.95,0.03]
[1758243284684,0.06,247.98,247.95,0.03]
[1758243285474,0.06,247.98,247.96,26.0]
[1758243286870,0.06,247.98,247.97,4.03274589]
[1758243288268,0.74,247.98,247.97,4.03274589]
[1758243289265,0.06,247.98,247.97,4.03274589]
[1758243293972,0.06,247.98,247.97,30.03274589]
[1758243294272,0.74,248.0,247.97,61.51602047]
[1758243294273,0.06,248.0,247.97,61.51602047]
[1758243294481,0.06,248.02,248.01,26.0]
[1758243295596,0.06,248.02,248.01,30.03209548]
[1758243297387,0.74,248.02,248.01,30.03209548]
[1758243302180,0.74,248.02,247.99,4.03228217]
[1758243302384,0.68,248.01,247.98,30.03256859]
[1758243302594,0.06,248.02,247.98,30.03256859]
[1758243302595,0.68,248.0,247.98,30.03256859]
[1758243302780,0.68,247.99,247.98,4.03256859]
[1758243303480,0.74,248.02,247.98,4.03256859]
[1758243303687,0.06,248.02,247.98,4.03256859]
[1758243303990,0.68,248.01,247.98,4.03256859]
[1758243304589,0.68,248.0,247.98,4.03256859]
[1758243305711,0.68,248.0,247.97,14.11461063]
[1758243306505,0.06,248.02,248.0,26.0]
[1758243306998,0.68,248.01,247.97,30.03274589]
[1758243307193,0.68,248.0,247.97,30.03274589]
[1758243307393,0.68,247.99,247.97,30.03274589]
[1758243307812,0.74,248.02,247.97,14.11461063]
[1758243308000,0.06,248.02,247.97,14.11461063]
[1758243308812,0.06,248.02,247.97,14.14461063]
[1758243311217,0.74,248.02,247.97,14.14461063]
[1758243311909,0.68,248.01,248.0,26.0]
[1758243312296,0.06,248.02,248.0,26.0]
[1758243312503,0.68,248.01,248.0,26.0]
[1758243312809,0.68,248.01,247.97,4.06274589]
[1758243312992,0.68,248.0,247.97,4.06274589]
[1758243313189,0.68,247.99,247.97,4.06274589]
[1758243313393,0.68,247.98,247.97,4.06274589]
[1758243313588,0.68,248.01,247.98,26.0]
[1758243313804,0.68,248.01,247.99,4.03242066]
[1758243313994,0.68,248.0,247.99,4.03242066]
[1758243315714,0.74,248.02,247.99,4.03242066]
[1758243315937,0.68,248.01,247.99,4.03242066]
[1758243316211,0.68,248.0,247.99,4.03242066]
[1758243317211,0.06,248.02,248.01,26.0]
[1758243317402,0.74,248.02,248.01,26.0]
[1758243317920,0.06,248.02,248.01,30.03209548]
[1758243318091,0.06,248.05,248.02,26.0]
[1758243320214,0.06,248.05,248.02,30.0319329]
[1758243324237,0.74,248.03,248.02,30.0319329]
[1758243324431,0.06,248.03,248.02,30.0319329]
[1758243325958,0.72,248.03,248.02,30.0319329]
[1758243327231,0.06,248.03,248.02,30.0319329]
[1758243328715,0.72,248.03,248.02,30.0319329]
[1758243333353,0.06,248.03,248.02,30.0319329]
[1758243334857,0.06,248.03,248.02,4.0319329]
[1758243337537,0.06,248.03,248.02,30.0319329]
[1758243337858,0.72,248.03,248.02,61.0719329]
[1758243342160,0.72,248.03,248.02,4.0319329]
[1758243343061,0.72,248.03,248.02,4.0619329]
[1758243349453,0.06,248.03,248.02,4.0619329]
[1758243350165,0.72,248.03,248.02,4.0619329]
[1758243353750,0.72,248.03,248.02,30.0619329]
[1758243357554,0.72,248.03,248.02,26.03]
[1758243357753,0.72,248.03,248.02,0.03]
[1758243368478,0.78,248.03,248.02,0.03]
[1758243375567,4.81177035,248.03,248.02,0.03]
[1758243375774,18.40736436,248.03,248.02,0.03]
[1758243375962,14.37559401,248.03,248.02,0.03]
[1758243376284,18.40736436,248.03,248.02,0.03]
[1758243377366,19.85032789,248.03,248.02,0.03]
[1758243377787,20.13465103,248.03,248.02,0.03]
[1758243379769,20.94955215,248.03,248.02,0.03]
[1758243381273,46.94955215,248.03,248.02,0.03]
[1758243382476,46.94955215,248.03,247.97,0.03]
[1758243382477,26.0,247.99,247.97,0.03]
[1758243382683,13.59559401,247.96,247.95,0.03]
[1758243382889,15.85345866,247.96,247.95,0.03]
[1758243383086,16.57345866,247.96,247.95,0.03]
[1758243383578,20.60636719,247.96,247.95,0.03]
[1758243384900,45.35559401,247.96,247.95,0.03]
[1758243385086,14.31559401,247.96,247.95,0.03]
[1758243385290,45.35559401,247.96,247.95,0.03]
[1758243385793,49.38850254,247.96,247.95,0.03]
[1758243385972,45.35559401,247.96,247.95,0.03]
[1758243387385,49.38850254,247.96,247.95,0.03]
[1758243387584,48.66850254,247.96,247.95,0.03]
[1758243388785,50.92636719,247.96,247.95,0.03]
[1758243389095,44.63559401,247.96,247.95,0.03]
[1758243391882,48.66850254,247.96,247.95,0.03]
[1758243392374,44.63559401,247.96,247.95,0.03]
[1758243393415,48.66850254,247.96,247.95,0.03]
[1758243394007,44.63559401,247.96,247.95,0.03]
[1758243394184,4.03209548,248.01,247.95,0.03]
[1758243394385,44.63559401,248.0,247.95,0.03]
[1758243394590,13.59559401,247.97,247.95,0.03]
[1758243394887,2.25786465,247.98,247.95,0.03]
[1758243394888,44.63559401,247.96,247.95,0.03]
[1758243397207,48.66850254,247.96,247.95,0.03]
[1758243401212,44.63559401,247.96,247.95,0.03]
[1758243402726,2.25786465,248.01,247.95,0.03]
[1758243402727,17.91203661,248.01,247.95,0.03]
[1758243402940,31.04,248.0,247.95,0.03]
[1758243403227,35.07238959,248.0,247.95,0.03]
[1758243405219,4.03238959,248.0,247.95,0.03]
[1758243405410,13.59559401,247.98,247.95,0.03]
[1758243405719,31.04,247.97,247.95,0.03]
[1758243405900,13.59559401,247.98,247.95,0.03]
[1758243406103,31.04,247.97,247.95,0.03]
[1758243406296,7.46,248.06,247.95,0.03]
[1758243406522,13.65559401,248.03,247.95,0.03]
[1758243406708,13.59559401,248.01,247.95,0.03]
[1758243407027,31.04,248.0,247.95,0.03]
[1758243408910,4.09177865,248.03,247.97,4.03274589]
[1758243409113,0.06,248.0,247.97,4.03274589]
[1758243409299,31.04,247.99,247.97,4.03274589]
[1758243409502,31.04,247.99,247.95,30.06293487]
[1758243409836,31.04,247.99,247.95,26.03]
[1758243409996,13.59559401,247.98,247.95,0.03]
[1758243411005,17.62828034,247.98,247.95,0.03]
[1758243412427,13.59559401,247.96,247.95,0.03]
[1758243415622,44.63559401,247.96,247.95,0.03]
[1758243420031,48.66850254,247.96,247.95,0.03]
[1758243420729,44.63559401,247.96,247.95,0.03]
[1758243421627,44.61559401,247.96,247.95,0.03]
[1758243425717,48.64850254,247.96,247.95,0.03]
[1758243426050,48.70850254,247.96,247.95,0.03]
[1758243426219,50.96636719,247.96,247.95,0.03]
[1758243426423,48.70850254,247.96,247.95,0.03]
[1758243426631,50.96636719,247.96,247.95,0.03]
[1758243427022,48.70850254,247.96,247.95,0.03]
[1758243430143,51.25069033,247.96,247.95,0.03]
[1758243430340,53.96828504,247.96,247.95,0.03]
[1758243431616,51.71042039,247.96,247.95,0.03]
[1758243431830,53.96828504,247.96,247.95,0.03]
[1758243434631,13.87991715,247.95,247.92,0.03]
[1758243434822,16.1377818,247.93,247.92,0.03]
[1758243435025,18.85537651,247.93,247.92,0.03]
[1758243436237,22.88877303,247.93,247.92,0.03]
[1758243437142,22.88292929,247.93,247.92,0.03]
[1758243437640,20.17117832,247.93,247.92,0.03]
[1758243438317,48.93331367,247.93,247.92,0.03]
[1758243439320,51.19117832,247.93,247.92,0.03]
[1758243440440,77.19117832,247.93,247.92,0.03]
[1758243440742,26.0,247.91,247.88,0.03]
[1758243440921,16.1377818,247.89,247.88,0.03]
[1758243441122,49.86750889,247.89,247.88,0.03]
[1758243441441,58.84792496,247.89,247.88,0.03]
[1758243441822,58.03682907,247.89,247.88,0.03]
[1758243442435,62.07087642,247.89,247.88,0.03]
[1758243446063,72.15599481,247.89,247.85,0.03]
[1758243446238,15.32668591,247.87,247.85,0.03]
[1758243446435,46.34668591,247.87,247.85,0.03]
[1758243446629,62.01662645,247.87,247.85,0.03]
[1758243447328,66.0509993,247.87,247.85,0.03]
[1758243447530,66.7509993,247.87,247.85,0.03]
[1758243449538,64.60423054,247.87,247.85,0.03]
[1758243449944,64.46206897,247.87,247.85,0.03]
[1758243450153,64.60423054,247.87,247.85,0.03]
[1758243453734,65.30423054,247.87,247.85,0.03]
[1758243458360,64.60423054,247.87,247.85,0.03]
[1758243459354,29.54985769,247.87,247.85,0.03]
[1758243459559,60.56985769,247.87,247.85,0.03]
[1758243459851,29.26553455,247.87,247.85,0.03]
[1758243460053,15.66994054,247.87,247.85,0.03]
[1758243460237,46.68994054,247.87,247.85,0.03]
[1758243461650,15.66994054,247.87,247.85,26.03]
[1758243461861,46.68994054,247.87,247.85,26.03]
[1758243463451,46.68994054,247.87,247.85,0.03]
[1758243468044,15.66994054,247.87,247.85,0.03]
[1758243469762,15.66994054,247.87,247.86,26.03]
[1758243471855,15.66994054,247.87,247.86,0.03]
[1758243472352,15.66994054,247.87,247.86,26.03]
[1758243473361,15.66994054,247.87,247.86,4.06453562]
[1758243478776,0.06,247.88,247.86,4.06453562]
[1758243480850,0.06,247.88,247.87,26.0]
[1758243481676,0.06,247.88,247.87,27.61436788]
[1758243482462,0.06,247.88,247.87,26.0]
[1758243483179,0.06,247.88,247.87,30.03437285]
[1758243488674,0.06,247.88,247.87,4.03437285]
[1758243488885,0.06,247.88,247.87,26.0]
[1758243489264,0.06,247.91,247.87,66.78986384]
[1758243489568,0.06,247.91,247.88,0.40342101]
[1758243490166,0.06,247.91,247.9,26.0]
[1758243491263,0.06,247.91,247.9,30.03388463]
[1758243491475,0.06,247.91,247.9,31.64786167]
[1758243492873,0.06,247.91,247.9,62.64786167]
[1758243496191,0.06,247.93,247.91,5.75549099]
[1758243496377,0.06,247.93,247.92,0.40335592]
[1758243496882,0.06,247.93,247.92,2.01720272]
[1758243497289,0.06,247.96,247.95,26.0]
[1758243497481,0.06,247.96,247.95,57.0]
[1758243498093,0.06,247.96,247.95,58.61371659]
[1758243498301,0.06,247.97,247.95,58.61371659]
[1758243499180,0.06,247.97,247.96,57.0]
[1758243499377,0.06,247.97,247.96,61.03290853]
[1758243499577,0.06,247.97,247.96,31.64662512]
[1758243499990,0.06,247.97,247.96,62.64662512]
[1758243501896,0.06,247.99,247.96,72.72889645]
[1758243502078,0.06,247.99,247.97,5.75549099]
[1758243502282,0.06,247.99,247.98,31.38325832]
[1758243502684,0.06,247.99,247.98,32.99671454]
[1758243502893,0.06,248.0,247.98,32.99671454]
[1758243503383,0.06,248.0,247.98,31.38325832]
[1758243503585,0.06,248.0,247.99,1.61345623]
[1758243503978,0.06,248.0,247.99,5.64587689]
[1758243504678,0.06,248.03,247.99,15.72692854]
[1758243504879,0.06,248.03,248.02,26.0]
[1758243505086,0.06,248.03,248.02,56.98]
[1758243505298,0.06,248.03,248.02,58.59313088]
[1758243505890,0.06,248.03,248.02,62.62506378]
[1758243508604,0.06,248.03,248.02,31.64506378]
[1758243508995,0.75,248.03,248.02,62.62506378]
[1758243511408,0.75,248.03,248.02,31.64506378]
[1758243511608,0.75,248.03,248.02,62.62506378]
[1758243512215,0.75,248.03,248.02,31.64506378]
[1758243512420,0.75,248.03,248.02,62.62506378]
[1758243513815,0.06,248.03,248.02,63.02825707]
[1758243514283,0.06,248.05,248.02,73.10808934]
[1758243514708,0.06,248.05,248.04,4.0316078]
[1758243514887,0.06,248.05,248.04,35.41476858]
[1758243515287,0.06,248.05,248.04,37.02776937]
[1758243515699,0.75,248.05,248.04,5.64460859]
[1758243515903,0.75,248.05,248.04,36.62460859]
[1758243516101,0.06,248.05,248.04,36.62460859]
[1758243520325,0.06,248.06,248.04,36.62460859]
[1758243520625,0.06,248.08,248.07,26.0]
[1758243520814,0.06,248.08,248.07,56.98]
[1758243521010,0.06,248.08,248.07,58.59267563]
[1758243522504,0.06,248.08,248.07,62.62379587]
[1758243523695,0.06,248.08,248.07,62.60379587]
[1758243525611,0.06,248.08,248.07,31.64379587]
[1758243525813,0.06,248.08,248.07,62.60379587]
[1758243526416,0.06,248.08,248.07,31.64379587]
[1758243526620,0.06,248.08,248.07,62.60379587]
[1758243527018,0.06,248.08,248.07,31.64379587]
[1758243527324,0.75,248.08,248.07,5.64379587]
[1758243527529,0.75,248.08,248.07,36.60379587]
[1758243527827,0.75,248.08,248.07,5.64379587]
[1758243528001,0.75,248.08,248.07,36.60379587]
[1758243531152,0.75,248.08,248.07,5.64379587]
[1758243531312,0.75,248.08,248.07,36.60379587]
[1758243531811,0.06,248.08,248.07,36.60379587]
[1758243532012,0.75,248.08,248.07,36.60379587]
[1758243533755,0.75,248.08,248.07,5.64379587]
[1758243533954,0.75,248.08,248.07,36.60379587]
[1758243534344,0.75,248.08,248.07,36.63379587]
[1758243537741,0.06,248.08,248.07,36.63379587]
[1758243537946,0.06,248.08,248.07,31.67379587]
[1758243538252,0.76,248.08,248.07,36.63379587]
[1758243538424,0.76,248.08,248.07,5.67379587]
[1758243538620,0.06,248.08,248.07,36.63379587]
[1758243539844,0.76,248.08,248.07,27.64267563]
[1758243540042,0.76,248.08,248.07,58.60267563]
[1758243540440,0.76,248.08,248.07,62.63379587]
[1758243541370,0.06,248.08,248.07,62.63379587]
[1758243546659,0.06,248.08,248.07,68.38928686]
[1758243546855,0.06,248.1,248.07,78.46708748]
[1758243547151,0.06,248.1,248.08,5.75549099]
[1758243547358,0.06,248.1,248.09,30.96]